fUST/lending_fUST_20250225
["ID","MTS","AMOUNT","RATE_DAILY","PERIOD"]
[354334398,1740426640231,-560.63,0.00014684,2]
[354334399,1740426640241,-500.0,0.00014684,2]
[354334400,1740426640250,-839.91,0.00014684,2]
[354334401,1740426640260,-2458.51,0.00014684,2]
[354334402,1740426640270,-500.0,0.00014684,2]
[354334403,1740426640280,-757.47,0.00014684,2]
[354334404,1740426640289,-7237.67,0.00014684,2]
[354334405,1740426640313,-906.71,0.00014684,2]
[354334407,1740426640323,-1637.13,0.00014684,2]
[354334408,1740426640332,-586.07,0.00014684,2]
[354334409,1740426640342,-1669.06,0.00014684,2]
[354334410,1740426640351,-1799.77,0.00014684,2]
[354334412,1740426640361,-970.0,0.00014684,2]
[354334415,1740426640372,-1617.98,0.00014684,2]
[354334418,1740426640382,-9318.78,0.00014684,2]
[354334421,1740426640391,-798.94,0.00014684,2]
[354334424,1740426640401,-553.11,0.00014684,2]
[354334426,1740426640410,-500.0,0.00014684,2]
[354334428,1740426640419,-195.576123,0.00014684,2]
[354334430,1740426640429,-151.0,0.000147,2]
[354334432,1740426640438,-151.0,0.00014766,2]
[354334434,1740426640448,-304.227787,0.00014766,2]
[354334436,1740426640458,-304.227787,0.00014766,2]
[354334438,1740426640468,-2749.085925,0.00014766,2]
[354334441,1740426640477,-2749.085925,0.00014766,2]
[354334443,1740426640486,-887.071127,0.00014766,2]
[354334445,1740426640496,-887.071127,0.00014766,2]
[354334447,1740426640505,-151.230535,0.00014766,2]
[354334449,1740426640515,-151.230535,0.00014766,2]
[354334460,1740426640598,-151.0,0.00014766,2]
[354334462,1740426640620,-151.0,0.00014766,2]
[354334464,1740426640630,-568.605924,0.00014766,2]
[354334466,1740426640640,-568.605924,0.00014766,2]
[354334468,1740426640649,-151.0,0.00014766,2]
[354334470,1740426640659,-151.0,0.00014766,2]
[354334471,1740426640669,-314.024262,0.00014766,2]
[354334473,1740426640678,-314.024262,0.00014766,2]
[354334475,1740426640688,-519.82,0.00014767,2]
[354334476,1740426640698,-500.0,0.00014767,2]
[354334477,1740426640707,-500.0,0.00014767,2]
[354334478,1740426640716,-789.85,0.00014767,2]
[354334479,1740426640726,-792.13,0.00014767,2]
[354334480,1740426640735,-737.26,0.00014767,2]
[354334481,1740426640745,-500.0,0.00014767,2]
[354334482,1740426640754,-1020.52,0.00014767,2]
[354334483,1740426640763,-500.0,0.00014767,2]
[354334484,1740426640772,-560.63,0.00014767,2]
[354334485,1740426640782,-500.0,0.00014767,2]
[354334486,1740426640791,-839.91,0.00014767,2]
[354334487,1740426640819,-2458.51,0.00014767,2]
[354334488,1740426640828,-500.0,0.00014767,2]
[354334489,1740426640838,-757.47,0.00014767,2]
[354334490,1740426640847,-7237.67,0.00014767,2]
[354334491,1740426640857,-906.71,0.00014767,2]
[354334492,1740426640866,-733.252567,0.00014767,2]
[354334493,1740426640876,-733.252567,0.00014767,2]
[354334494,1740426640888,-1637.13,0.00014767,2]
[354334495,1740426640898,-586.07,0.00014767,2]
[354334496,1740426640907,-277.34297,0.00014767,2]
[354334497,1740426640917,-277.34297,0.00014767,2]
[354334498,1740426640926,-174.056845,0.00014767,2]
[354334499,1740426640935,-174.056845,0.00014767,2]
[354334500,1740426640944,-1669.06,0.00014767,2]
[354334501,1740426640953,-1799.77,0.00014767,2]
[354334502,1740426640963,-970.0,0.00014767,2]
[354334503,1740426640972,-1617.98,0.00014767,2]
[354334504,1740426640981,-9318.78,0.00014767,2]
[354334505,1740426640990,-798.94,0.00014767,2]
[354334506,1740426641001,-553.11,0.00014767,2]
[354334507,1740426641010,-500.0,0.00014767,2]
[354334508,1740426641022,-151.0,0.000148,2]
[354334509,1740426641031,-203.14078552,0.000148,2]
[354334510,1740426641040,-500.0,0.00014848,2]
[354334511,1740426641050,-500.0,0.00014848,2]
[354334512,1740426641059,-500.0,0.00014848,2]
[354334513,1740426641070,-500.0,0.00014848,2]
[354334514,1740426641080,-500.0,0.00014848,2]
[354334515,1740426641089,-500.0,0.00014848,2]
[354334516,1740426641098,-500.0,0.00014848,2]
[354334517,1740426641108,-500.0,0.00014848,2]
[354334518,1740426641118,-500.0,0.00014848,2]
[354334519,1740426641128,-500.0,0.00014848,2]
[354334520,1740426641137,-500.0,0.00014848,2]
[354334521,1740426641146,-500.0,0.00014848,2]
[354334522,1740426641156,-645.74860392,0.00014848,2]
[354334523,1740426641166,-500.0,0.00014848,2]
[354334524,1740426641175,-500.0,0.00014848,2]
[354334525,1740426641186,-500.0,0.00014848,2]
[354334526,1740426641196,-500.0,0.00014848,2]
[354334527,1740426641206,-500.0,0.00014848,2]
[354334528,1740426641215,-500.0,0.00014848,2]
[354334529,1740426641225,-500.0,0.00014848,2]
[354334530,1740426641234,-500.0,0.00014848,2]
[354334531,1740426641243,-500.0,0.00014848,2]
[354334532,1740426641253,-500.0,0.00014848,2]
[354334533,1740426641261,-500.0,0.00014848,2]
[354334534,1740426641271,-500.0,0.00014848,2]
[354334535,1740426641280,-500.0,0.00014848,2]
[354334536,1740426641289,-413.83974751,0.00014848,2]
[354334537,1740426641320,-86.16025249,0.00014848,2]
[354334538,1740426641330,-500.0,0.00014848,2]
[354334539,1740426641339,-151.0,0.00014848,2]
[354334540,1740426641349,-242.68682,0.00014848,2]
[354334541,1740426641358,-93.11752351,0.00014848,2]
[354334542,1740426641371,-149.56929649,0.00014848,2]
[354334543,1740426641381,-773.183495,0.00014848,2]
[354334544,1740426641391,-773.183495,0.00014848,2]
[354334545,1740426641401,-733.252567,0.00014848,2]
[354334546,1740426641411,-733.252567,0.00014848,2]
[354334547,1740426641421,-874.186738,0.00014848,2]
[354334548,1740426641430,-874.186738,0.00014848,2]
[354334549,1740426641439,-500.0,0.00014848,2]
[354334550,1740426641449,-500.0,0.00014848,2]
[354334551,1740426641458,-448.83526797,0.00014848,2]
[354334552,1740426641468,-500.0,0.00014849,2]
[354334553,1740426641477,-500.0,0.00014849,2]
[354334554,1740426641487,-789.85,0.00014849,2]
[354334555,1740426641497,-792.13,0.00014849,2]
[354334556,1740426641507,-737.26,0.00014849,2]
[354334557,1740426641516,-500.0,0.00014849,2]
[354334558,1740426641527,-1020.52,0.00014849,2]
[354334559,1740426641537,-500.0,0.00014849,2]
[354334560,1740426641547,-560.63,0.00014849,2]
[354334561,1740426641557,-500.0,0.00014849,2]
[354334562,1740426641567,-839.91,0.00014849,2]
[354334563,1740426641576,-2458.51,0.00014849,2]
[354334564,1740426641586,-500.0,0.00014849,2]
[354334565,1740426641595,-757.47,0.00014849,2]
[354334566,1740426641604,-1557.48983554,0.00014849,2]
[354334680,1740426643893,-500.0,0.00013698,2]
[354334683,1740426643903,-500.0,0.00013698,2]
[354334686,1740426643912,-500.0,0.0001378,2]
[354334689,1740426643922,-500.0,0.00013863,2]
[354334692,1740426643931,-5680.18016446,0.00014849,2]
[354334695,1740426643940,-906.71,0.00014849,2]
[354334698,1740426643950,-1637.13,0.00014849,2]
[354334701,1740426643959,-586.07,0.00014849,2]
[354334704,1740426643968,-1669.06,0.00014849,2]
[354334707,1740426643977,-1799.77,0.00014849,2]
[354334710,1740426643987,-970.0,0.00014849,2]
[354334713,1740426643996,-1617.98,0.00014849,2]
[354334715,1740426644005,-1930.89983554,0.00014849,2]
[354334717,1740426644017,-7387.88016446,0.00014849,2]
[354334719,1740426644028,-798.94,0.00014849,2]
[354334722,1740426644039,-553.11,0.00014849,2]
[354334724,1740426644050,-500.0,0.00014849,2]
[354334726,1740426644059,-159.66213942,0.00014872,2]
[354334728,1740426644068,-331.559517,0.000149,2]
[354334731,1740426644079,-331.559517,0.000149,2]
[354334732,1740426644088,-151.0,0.000149,2]
[354334734,1740426644097,-151.0,0.000149,2]
[354334737,1740426644110,-151.0,0.000149,2]
[354334739,1740426644120,-242.68682,0.000149,2]
[354334740,1740426644130,-242.68682,0.000149,2]
[354334742,1740426644140,-773.183495,0.000149,2]
[354334744,1740426644149,-773.183495,0.000149,2]
[354334746,1740426644158,-874.186738,0.000149,2]
[354334748,1740426644168,-874.186738,0.000149,2]
[354334750,1740426644177,-277.34297,0.000149,2]
[354334753,1740426644187,-277.34297,0.000149,2]
[354334755,1740426644197,-174.056845,0.000149,2]
[354334757,1740426644206,-174.056845,0.000149,2]
[354334759,1740426644216,-500.0,0.0001493,2]
[354334760,1740426644225,-500.0,0.0001493,2]
[354334763,1740426644235,-500.0,0.0001493,2]
[354334765,1740426644245,-500.0,0.0001493,2]
[354334767,1740426644254,-500.0,0.0001493,2]
[354334769,1740426644263,-500.0,0.0001493,2]
[354334771,1740426644273,-500.0,0.0001493,2]
[354334773,1740426644282,-500.0,0.0001493,2]
[354334775,1740426644291,-500.0,0.0001493,2]
[354334777,1740426644302,-500.0,0.0001493,2]
[354334779,1740426644311,-151.0,0.0001493,2]
[354334781,1740426644320,-304.227787,0.0001493,2]
[354334783,1740426644329,-304.227787,0.0001493,2]
[354334785,1740426644338,-2749.085925,0.0001493,2]
[354334787,1740426644350,-2749.085925,0.0001493,2]
[354334789,1740426644359,-887.071127,0.0001493,2]
[354334791,1740426644368,-887.071127,0.0001493,2]
[354334793,1740426644377,-151.230535,0.0001493,2]
[354334795,1740426644386,-151.230535,0.0001493,2]
[354334797,1740426644396,-151.0,0.0001493,2]
[354334798,1740426644405,-151.0,0.0001493,2]
[354334801,1740426644415,-568.605924,0.0001493,2]
[354334803,1740426644425,-568.605924,0.0001493,2]
[354334804,1740426644435,-151.0,0.0001493,2]
[354334807,1740426644445,-151.0,0.0001493,2]
[354334809,1740426644454,-314.024262,0.0001493,2]
[354334811,1740426644463,-314.024262,0.0001493,2]
[354334814,1740426644473,-434.16,0.00014931,2]
[354334816,1740426644482,-500.0,0.00014931,2]
[354334818,1740426644491,-789.85,0.00014931,2]
[354334819,1740426644500,-792.13,0.00014931,2]
[354334822,1740426644510,-737.26,0.00014931,2]
[354334823,1740426644519,-500.0,0.00014931,2]
[354334825,1740426644528,-500.0,0.00014931,2]
[354334827,1740426644538,-560.63,0.00014931,2]
[354334829,1740426644547,-2458.51,0.00014931,2]
[354334831,1740426644556,-500.0,0.00014931,2]
[354334833,1740426644565,-757.47,0.00014931,2]
[354334835,1740426644574,-7237.67,0.00014931,2]
[354334837,1740426644584,-906.71,0.00014931,2]
[354334839,1740426644595,-733.252567,0.00014931,2]
[354334841,1740426644604,-733.252567,0.00014931,2]
[354334843,1740426644613,-1637.13,0.00014931,2]
[354334846,1740426644623,-586.07,0.00014931,2]
[354334848,1740426644632,-1669.06,0.00014931,2]
[354334850,1740426644642,-1799.77,0.00014931,2]
[354334851,1740426644651,-970.0,0.00014931,2]
[354334853,1740426644661,-1617.98,0.00014931,2]
[354334855,1740426644670,-9318.78,0.00014931,2]
[354334858,1740426644680,-798.94,0.00014931,2]
[354334860,1740426644689,-553.11,0.00014931,2]
[354334862,1740426644699,-500.0,0.00014931,2]
[354334864,1740426644708,-413.977976,0.00015,2]
[354334866,1740426644718,-500.0,0.00015013,2]
[354334868,1740426644727,-500.0,0.00015013,2]
[354334878,1740426644819,-500.0,0.00015013,2]
[354334880,1740426644828,-500.0,0.00015013,2]
[354334882,1740426644837,-500.0,0.00015013,2]
[354334884,1740426644846,-500.0,0.00015013,2]
[354334886,1740426644855,-500.0,0.00015013,2]
[354334888,1740426644864,-500.0,0.00015013,2]
[354334890,1740426644874,-789.85,0.00015013,2]
[354334892,1740426644883,-792.13,0.00015013,2]
[354334894,1740426644892,-737.26,0.00015013,2]
[354334896,1740426644902,-500.0,0.00015013,2]
[354334898,1740426644914,-240.361959,0.00015013,2]
[354334900,1740426644924,-500.0,0.00015013,2]
[354334902,1740426644934,-560.63,0.00015013,2]
[354334904,1740426644944,-242.68682,0.00015013,2]
[354334905,1740426644954,-242.68682,0.00015013,2]
[354334906,1740426644963,-2458.51,0.00015013,2]
[354334907,1740426644973,-401.11522382,0.00015013,2]
[354334908,1740426644986,-98.88477618,0.00015013,2]
[354334909,1740426644995,-7237.67,0.00015013,2]
[354334910,1740426645005,-757.47,0.00015013,2]
[354334911,1740426645014,-906.71,0.00015013,2]
[354334912,1740426645026,-773.183495,0.00015013,2]
[354334913,1740426645037,-773.183495,0.00015013,2]
[354334914,1740426645047,-1637.13,0.00015013,2]
[354334915,1740426645057,-874.186738,0.00015013,2]
[354334916,1740426645069,-874.186738,0.00015013,2]
[354334917,1740426645079,-586.07,0.00015013,2]
[354334918,1740426645089,-277.34297,0.00015013,2]
[354334919,1740426645100,-277.34297,0.00015013,2]
[354334921,1740426645110,-174.056845,0.00015013,2]
[354334922,1740426645119,-174.056845,0.00015013,2]
[354334923,1740426645128,-1669.06,0.00015013,2]
[354334925,1740426645137,-1799.77,0.00015013,2]
[354334926,1740426645146,-970.0,0.00015013,2]
[354334928,1740426645156,-1617.98,0.00015013,2]
[354334930,1740426645165,-9318.78,0.00015013,2]
[354334931,1740426645174,-798.94,0.00015013,2]
[354334932,1740426645183,-553.11,0.00015013,2]
[354334934,1740426645193,-500.0,0.00015013,2]
[354334936,1740426645203,-500.0,0.00015073,2]
[354334938,1740426645211,-500.0,0.00015073,2]
[354334939,1740426645221,-500.0,0.00015095,2]
[354334940,1740426645230,-500.0,0.00015095,2]
[354334942,1740426645239,-500.0,0.00015095,2]
[354334943,1740426645248,-500.0,0.00015095,2]
[354334944,1740426645258,-500.0,0.00015095,2]
[354334946,1740426645267,-331.559517,0.00015095,2]
[354334948,1740426645277,-331.559517,0.00015095,2]
[354334950,1740426645286,-151.0,0.00015095,2]
[354334952,1740426645297,-500.0,0.00015095,2]
[354334954,1740426645307,-789.85,0.00015095,2]
[354334957,1740426645317,-587.27609174,0.00015095,2]
[354334959,1740426645329,-204.85390826,0.00015095,2]
[354334961,1740426645338,-151.0,0.00015095,2]
[354334963,1740426645348,-151.0,0.00015095,2]
[354334965,1740426645357,-304.227787,0.00015095,2]
[354334967,1740426645365,-304.227787,0.00015095,2]
[354334969,1740426645374,-2749.085925,0.00015095,2]
[354334971,1740426645383,-2749.085925,0.00015095,2]
[354334973,1740426645393,-887.071127,0.00015095,2]
[354334975,1740426645401,-887.071127,0.00015095,2]
[354334977,1740426645411,-737.26,0.00015095,2]
[354334979,1740426645420,-642.42148763,0.00015095,2]
[354334981,1740426645429,-151.230535,0.00015095,2]
[354334983,1740426645438,-151.230535,0.00015095,2]
[354334985,1740426645447,-151.0,0.00015095,2]
[354334987,1740426645457,-151.0,0.00015095,2]
[354334989,1740426645466,-500.0,0.00015095,2]
[354334991,1740426645476,-560.63,0.00015095,2]
[354334993,1740426645486,-2458.51,0.00015095,2]
[354334995,1740426645495,-500.0,0.00015095,2]
[354334997,1740426645506,-568.605924,0.00015095,2]
[354334999,1740426645516,-7237.67,0.00015095,2]
[354335001,1740426645525,-757.47,0.00015095,2]
[354335003,1740426645535,-568.605924,0.00015095,2]
[354335005,1740426645544,-906.71,0.00015095,2]
[354335007,1740426645554,-733.252567,0.00015095,2]
[354335009,1740426645564,-733.252567,0.00015095,2]
[354335011,1740426645574,-1637.13,0.00015095,2]
[354335013,1740426645583,-151.0,0.00015095,2]
[354335015,1740426645593,-151.0,0.00015095,2]
[354335017,1740426645602,-314.024262,0.00015095,2]
[354335019,1740426645611,-314.024262,0.00015095,2]
[354335021,1740426645620,-586.07,0.00015095,2]
[354335023,1740426645629,-1669.06,0.00015095,2]
[354335025,1740426645639,-1799.77,0.00015095,2]
[354335027,1740426645648,-970.0,0.00015095,2]
[354335029,1740426645658,-1617.98,0.00015095,2]
[354335031,1740426645667,-9318.78,0.00015095,2]
[354335033,1740426645676,-798.94,0.00015095,2]
[354335035,1740426645685,-553.11,0.00015095,2]
[354335036,1740426645695,-294.08,0.00015095,2]
[354335038,1740426645704,-159.66213942,0.0001516,2]
[354335040,1740426645713,-500.0,0.00015177,2]
[354335043,1740426645723,-500.0,0.00015177,2]
[354335045,1740426645732,-500.0,0.00015177,2]
[354335047,1740426645741,-500.0,0.00015177,2]
[354335048,1740426645750,-174.056845,0.00015177,2]
[354335050,1740426645760,-174.056845,0.00015177,2]
[354335052,1740426645770,-170.04402086,0.00015178,2]
[354335055,1740426645779,-789.85,0.00015178,2]
[354335056,1740426645788,-792.13,0.00015178,2]
[354335058,1740426645798,-737.26,0.00015178,2]
[354335060,1740426645807,-500.0,0.00015178,2]
[354335062,1740426645816,-560.63,0.00015178,2]
[354335064,1740426645825,-242.68682,0.00015178,2]
[354335066,1740426645834,-242.68682,0.00015178,2]
[354335068,1740426645843,-2458.51,0.00015178,2]
[354335070,1740426645853,-500.0,0.00015178,2]
[354335072,1740426645862,-7237.67,0.00015178,2]
[354335074,1740426645871,-757.47,0.00015178,2]
[354335076,1740426645880,-906.71,0.00015178,2]
[354335078,1740426645890,-773.183495,0.00015178,2]
[354335080,1740426645900,-773.183495,0.00015178,2]
[354335082,1740426645909,-1637.13,0.00015178,2]
[354335084,1740426645918,-874.186738,0.00015178,2]
[354335086,1740426645927,-874.186738,0.00015178,2]
[354335088,1740426645936,-586.07,0.00015178,2]
[354335090,1740426645945,-277.34297,0.00015178,2]
[354335092,1740426645955,-277.34297,0.00015178,2]
[354335094,1740426645964,-1669.06,0.00015178,2]
[354335096,1740426645973,-1799.77,0.00015178,2]
[354335098,1740426645982,-970.0,0.00015178,2]
[354335100,1740426645991,-1617.98,0.00015178,2]
[354335102,1740426646000,-9318.78,0.00015178,2]
[354335104,1740426646009,-798.94,0.00015178,2]
[354335106,1740426646021,-553.11,0.00015178,2]
[354335108,1740426646030,-1500.0,0.00015222,2]
[354335110,1740426646040,-383.89233599,0.00015242,2]
[354335112,1740426646050,-383.89233599,0.00015242,2]
[354335114,1740426646059,-383.89233599,0.00015242,2]
[354335116,1740426646069,-383.89233599,0.00015242,2]
[354335118,1740426646078,-383.89233599,0.00015242,2]
[354335120,1740426646087,-383.89233599,0.00015242,2]
[354335123,1740426646099,-383.89233599,0.00015242,2]
[354335126,1740426646109,-383.89233599,0.00015242,2]
[354335129,1740426646118,-383.89233599,0.00015242,2]
[354335132,1740426646127,-383.89233599,0.00015242,2]
[354335135,1740426646136,-383.89233599,0.00015242,2]
[354335138,1740426646145,-383.89233599,0.00015242,2]
[354335141,1740426646154,-383.89233599,0.00015242,2]
[354335144,1740426646163,-383.89233599,0.00015242,2]
[354335147,1740426646172,-383.89233599,0.00015242,2]
[354335150,1740426646181,-383.89233599,0.00015242,2]
[354335153,1740426646190,-383.89233599,0.00015242,2]
[354335156,1740426646199,-383.89233599,0.00015242,2]
[354335160,1740426646208,-383.89233599,0.00015242,2]
[354335163,1740426646217,-383.89,0.00015242,2]
[354335166,1740426646226,-1407.22578242,0.00015242,2]
[354335169,1740426646235,-500.0,0.00015259,2]
[354335172,1740426646244,-500.0,0.00015259,2]
[354335175,1740426646253,-500.0,0.00015259,2]
[354335179,1740426646263,-500.0,0.00015259,2]
[354335183,1740426646272,-789.85,0.0001526,2]
[354335186,1740426646281,-792.13,0.0001526,2]
[354335189,1740426646290,-737.26,0.0001526,2]
[354335192,1740426646300,-500.0,0.0001526,2]
[354335195,1740426646309,-560.63,0.0001526,2]
[354335198,1740426646319,-2458.51,0.0001526,2]
[354335201,1740426646328,-500.0,0.0001526,2]
[354335204,1740426646337,-7237.67,0.0001526,2]
[354335207,1740426646346,-757.47,0.0001526,2]
[354335210,1740426646355,-906.71,0.0001526,2]
[354335213,1740426646364,-1637.13,0.0001526,2]
[354335216,1740426646374,-586.07,0.0001526,2]
[354335219,1740426646382,-1669.06,0.0001526,2]
[354335222,1740426646392,-1799.77,0.0001526,2]
[354335225,1740426646401,-970.0,0.0001526,2]
[354335227,1740426646410,-1617.98,0.0001526,2]
[354335229,1740426646420,-9318.78,0.0001526,2]
[354335231,1740426646430,-798.94,0.0001526,2]
[354335233,1740426646439,-553.11,0.0001526,2]
[354335235,1740426646449,-156.03043341,0.0001526,2]
[354335237,1740426646458,-500.0,0.00015341,2]
[354335239,1740426646468,-500.0,0.00015341,2]
[354335241,1740426646478,-500.0,0.00015341,2]
[354335243,1740426646487,-500.0,0.00015341,2]
[354335245,1740426646497,-174.056845,0.00015341,2]
[354335247,1740426646507,-174.056847,0.00015341,2]
[354335250,1740426646517,-789.85,0.00015342,2]
[354335252,1740426646527,-792.13,0.00015342,2]
[354335254,1740426646536,-737.26,0.00015342,2]
[354335256,1740426646547,-456.4,0.00015342,2]
[354335258,1740426646556,-560.63,0.00015342,2]
[354335260,1740426646566,-2458.51,0.00015342,2]
[354335261,1740426646576,-647.26635572,0.00015342,2]
[354335263,1740426646586,-7237.67,0.00015342,2]
[354335266,1740426646596,-757.47,0.00015342,2]
[354335268,1740426646606,-906.71,0.00015342,2]
[354335270,1740426646616,-733.252567,0.00015342,2]
[354335271,1740426646626,-733.252567,0.00015342,2]
[354335273,1740426646636,-1637.13,0.00015342,2]
[354335275,1740426646645,-277.34297,0.00015342,2]
[354335277,1740426646655,-586.07,0.00015342,2]
[354335279,1740426646665,-277.342971,0.00015342,2]
[354335281,1740426646675,-1669.06,0.00015342,2]
[354335291,1740426646765,-1799.77,0.00015342,2]
[354335293,1740426646775,-970.0,0.00015342,2]
[354335295,1740426646785,-1617.98,0.00015342,2]
[354335298,1740426646795,-9318.78,0.00015342,2]
[354335300,1740426646808,-798.94,0.00015342,2]
[354335302,1740426646818,-553.11,0.00015342,2]
[354335305,1740426646829,-500.0,0.00015424,2]
[354335306,1740426646838,-500.0,0.00015424,2]
[354335308,1740426646848,-500.0,0.00015424,2]
[354335310,1740426646857,-500.0,0.00015424,2]
[354335312,1740426646867,-331.559517,0.00015424,2]
[354335314,1740426646877,-331.559517,0.00015424,2]
[354335316,1740426646885,-151.0,0.00015424,2]
[354335318,1740426646895,-789.85,0.00015424,2]
[354335320,1740426646904,-792.13,0.00015424,2]
[354335322,1740426646913,-151.0,0.00015424,2]
[354335324,1740426646923,-151.0,0.00015424,2]
[354335326,1740426646932,-304.227787,0.00015424,2]
[354335328,1740426646942,-304.227787,0.00015424,2]
[354335330,1740426646951,-2749.085925,0.00015424,2]
[354335332,1740426646962,-2749.085925,0.00015424,2]
[354335334,1740426646973,-887.071127,0.00015424,2]
[354335336,1740426646983,-887.071127,0.00015424,2]
[354335339,1740426646994,-737.26,0.00015424,2]
[354335340,1740426647004,-151.230535,0.00015424,2]
[354335342,1740426647014,-151.230535,0.00015424,2]
[354335345,1740426647025,-151.0,0.00015424,2]
[354335346,1740426647038,-151.0,0.00015424,2]
[354335348,1740426647051,-560.63,0.00015424,2]
[354335350,1740426647062,-242.68682,0.00015424,2]
[354335352,1740426647073,-242.68682,0.00015424,2]
[354335354,1740426647083,-2458.51,0.00015424,2]
[354335356,1740426647093,-568.605924,0.00015424,2]
[354335358,1740426647103,-7237.67,0.00015424,2]
[354335361,1740426647114,-757.47,0.00015424,2]
[354335363,1740426647124,-568.605924,0.00015424,2]
[354335364,1740426647134,-773.183495,0.00015424,2]
[354335366,1740426647144,-906.71,0.00015424,2]
[354335369,1740426647154,-773.183495,0.00015424,2]
[354335371,1740426647164,-1637.13,0.00015424,2]
[354335372,1740426647176,-151.0,0.00015424,2]
[354335374,1740426647186,-151.0,0.00015424,2]
[354335376,1740426647195,-874.186738,0.00015424,2]
[354335378,1740426647206,-874.186738,0.00015424,2]
[354335380,1740426647215,-314.024262,0.00015424,2]
[354335382,1740426647224,-314.024262,0.00015424,2]
[354335385,1740426647234,-586.07,0.00015424,2]
[354335387,1740426647244,-1669.06,0.00015424,2]
[354335389,1740426647253,-1799.77,0.00015424,2]
[354335391,1740426647263,-970.0,0.00015424,2]
[354335393,1740426647272,-1617.98,0.00015424,2]
[354335395,1740426647281,-9318.78,0.00015424,2]
[354335397,1740426647291,-798.94,0.00015424,2]
[354335399,1740426647304,-553.11,0.00015424,2]
[354335401,1740426647313,-156.03043341,0.00015479,2]
[354335403,1740426647322,-500.0,0.00015506,2]
[354335404,1740426647331,-500.0,0.00015506,2]
[354335406,1740426647341,-500.0,0.00015506,2]
[354335408,1740426647350,-500.0,0.00015506,2]
[354335411,1740426647360,-789.85,0.00015506,2]
[354335413,1740426647369,-792.13,0.00015506,2]
[354335415,1740426647378,-737.26,0.00015506,2]
[354335417,1740426647388,-560.63,0.00015506,2]
[354335419,1740426647397,-2458.51,0.00015506,2]
[354335421,1740426647406,-7237.67,0.00015506,2]
[354335423,1740426647415,-757.47,0.00015506,2]
[354335424,1740426647425,-906.71,0.00015506,2]
[354335427,1740426647435,-1637.13,0.00015506,2]
[354335429,1740426647444,-586.07,0.00015506,2]
[354335430,1740426647454,-1669.06,0.00015506,2]
[354335433,1740426647463,-1799.77,0.00015506,2]
[354335435,1740426647473,-970.0,0.00015506,2]
[354335436,1740426647482,-1617.98,0.00015506,2]
[354335438,1740426647492,-9318.78,0.00015506,2]
[354335440,1740426647501,-798.94,0.00015506,2]
[354335442,1740426647510,-553.11,0.00015506,2]
[354335444,1740426647519,-4578.94512336,0.0001557,2]
[354335446,1740426647528,-500.0,0.00015588,2]
[354335448,1740426647537,-500.0,0.00015588,2]
[354335451,1740426647548,-790.05,0.00015589,2]
[354335453,1740426647558,-792.24,0.00015589,2]
[354335455,1740426647567,-737.33,0.00015589,2]
[354335457,1740426647576,-560.79440965,0.00015589,2]
[354335459,1740426647586,-242.68682,0.00015589,2]
[354335461,1740426647595,-242.686824,0.00015589,2]
[354335463,1740426647604,-2458.55,0.00015589,2]
[354335465,1740426647613,-7237.71607915,0.00015589,2]